bitfinex-derivatives/quotes_BTCF0:USTF0_20250322
["timestamp","ask_amount","ask_price","bid_price","bid_amount"]
[1742672777628,0.66282173,84272.0,84271.0,0.03837466]
[1742672778040,0.30202173,84272.0,84271.0,0.03837466]
[1742672778230,0.30202173,84272.0,84271.0,0.03897466]
[1742672778543,0.30202173,84272.0,84271.0,0.03837466]
[1742672778839,0.30202173,84272.0,84271.0,0.07235466]
[1742672779038,0.30202173,84272.0,84271.0,0.03905466]
[1742672794259,0.30202173,84272.0,84271.0,0.07205466]
[1742672801463,0.30202173,84272.0,84271.0,0.07137466]
[1742672801668,0.30202173,84272.0,84271.0,0.07205466]
[1742672803175,0.30202173,84272.0,84271.0,0.07137466]
[1742672803374,0.30202173,84272.0,84271.0,0.07197466]
[1742672811379,0.30202173,84272.0,84271.0,0.03897466]
[1742672811679,0.30202173,84272.0,84271.0,0.03837466]
[1742672813379,0.30202173,84272.0,84271.0,0.03905466]
[1742672813579,0.30202173,84272.0,84271.0,0.03837466]
[1742672813881,0.30202173,84272.0,84271.0,0.03901466]
[1742672826787,0.30202173,84272.0,84271.0,0.03837466]
[1742672826991,0.30202173,84272.0,84271.0,0.03897466]
[1742672839886,0.30202173,84272.0,84271.0,0.25262148]
[1742672847785,0.30202173,84272.0,84271.0,0.03897466]
[1742672847990,0.30202173,84272.0,84271.0,0.03837466]
[1742672848191,0.30202173,84272.0,84271.0,0.03905466]
[1742672851090,0.30202173,84272.0,84271.0,0.03837466]
[1742672853404,0.30202173,84272.0,84271.0,0.03897466]
[1742672853704,0.30202173,84272.0,84271.0,0.03837466]
[1742672853904,0.30202173,84272.0,84271.0,0.03901466]
[1742672854405,0.30202173,84272.0,84271.0,0.03837466]
[1742672854605,0.30202173,84272.0,84271.0,0.03897466]
[1742672862300,0.30202173,84272.0,84271.0,0.03837466]
[1742672862508,0.30202173,84272.0,84271.0,0.03897466]
[1742672862704,0.30202173,84272.0,84271.0,0.03837466]
[1742672864203,0.30202173,84272.0,84271.0,0.03897466]
[1742672864417,0.30202173,84272.0,84271.0,0.03837466]
[1742672864603,0.30202173,84272.0,84271.0,0.03897466]
[1742672865914,0.30202173,84272.0,84271.0,0.03837466]
[1742672866305,0.30202173,84272.0,84271.0,0.03897466]
[1742672866505,0.30202173,84272.0,84271.0,0.03837466]
[1742672867211,0.30202173,84272.0,84271.0,0.03901466]
[1742672867412,0.30202173,84272.0,84271.0,0.03837466]
[1742672867716,0.30202173,84272.0,84271.0,0.03897466]
[1742672883019,0.30202173,84272.0,84271.0,0.00607466]
[1742672883524,0.30202173,84272.0,84271.0,0.00547466]
[1742672883731,0.30202173,84272.0,84271.0,0.00607466]
[1742672885331,0.30202173,84272.0,84271.0,0.00547466]
[1742672888031,0.66282173,84272.0,84271.0,0.00547466]
[1742672891336,0.30202173,84272.0,84271.0,0.00547466]
[1742672891537,0.66282173,84272.0,84271.0,0.00547466]
[1742672892830,0.66282173,84272.0,84271.0,0.00347466]
[1742672893729,0.66282173,84272.0,84271.0,0.00047466]
[1742672894122,0.30202173,84272.0,84271.0,0.00047466]
[1742672894335,0.66282173,84272.0,84271.0,0.00047466]
[1742672895725,0.30202173,84272.0,84271.0,0.00047466]
[1742672897141,0.30202173,84272.0,84271.0,0.00115466]
[1742672897530,0.30202173,84272.0,84271.0,0.03355466]
[1742672899738,0.30202173,84272.0,84271.0,0.03287466]
[1742672901244,0.30302173,84272.0,84271.0,0.03287466]
[1742672903040,0.30402173,84272.0,84271.0,0.03287466]
[1742672903941,0.66482173,84272.0,84271.0,0.03287466]
[1742672904340,0.66382173,84272.0,84271.0,0.03287466]
[1742672905046,0.66282173,84272.0,84271.0,0.03287466]
[1742672907849,0.66382173,84272.0,84271.0,0.03287466]
[1742672908537,0.66482173,84272.0,84271.0,0.03287466]
[1742672908944,0.66382173,84272.0,84271.0,0.03287466]
[1742672909151,0.66482173,84272.0,84271.0,0.03287466]
[1742672911140,0.30302173,84272.0,84271.0,0.03287466]
[1742672911335,0.66482173,84272.0,84271.0,0.03287466]
[1742672911549,0.66382173,84272.0,84271.0,0.03287466]
[1742672912544,0.66482173,84272.0,84271.0,0.03287466]
[1742672913349,0.30302173,84272.0,84271.0,0.03287466]
[1742672913546,0.66382173,84272.0,84271.0,0.03287466]
[1742672914135,0.66382173,84272.0,84271.0,0.06597466]
[1742672927556,0.66382173,84272.0,84271.0,0.03287466]
[1742672929958,0.30302173,84272.0,84271.0,0.03287466]
[1742672930257,0.66382173,84272.0,84271.0,0.03287466]
[1742672930864,0.66382173,84272.0,84271.0,0.03387466]
[1742672931766,0.66482173,84272.0,84271.0,0.03287466]
[1742672934865,0.66382173,84272.0,84271.0,0.03287466]
[1742672935068,0.66482173,84272.0,84271.0,0.03287466]
[1742672938761,0.66282173,84272.0,84271.0,0.03287466]
[1742672938961,0.66282173,84272.0,84271.0,0.03487466]
[1742672940569,0.66482173,84272.0,84271.0,0.03287466]
[1742672942171,0.66382173,84272.0,84271.0,0.03287466]
[1742672942357,0.66482173,84272.0,84271.0,0.03287466]
[1742672943273,0.66482173,84272.0,84263.0,0.1186965]
[1742672943274,0.1187002,84261.0,84255.0,0.00047475]
[1742672943466,0.2317002,84261.0,84260.0,0.39256]
[1742672943771,0.24132337,84261.0,84260.0,0.35544889]
[1742672943973,0.42308744,84261.0,84260.0,0.03176]
[1742672944372,0.78388744,84261.0,84260.0,0.03176]
[1742672944573,0.77426427,84261.0,84260.0,0.03376]
[1742672945366,0.77426427,84261.0,84260.0,0.06626]
[1742672945965,0.78619494,84261.0,84260.0,0.06626]
[1742672946172,0.78619494,84261.0,84260.0,0.06826]
[1742672946665,0.78619494,84261.0,84260.0,0.06626]
[1742672946863,0.78619494,84261.0,84260.0,0.06826]
[1742672947170,0.118703,84259.0,84255.0,0.00047475]
[1742672947372,0.72684554,84261.0,84226.0,0.3608]
[1742672947373,0.5055,84258.0,84226.0,0.3608]
[1742672947564,0.4795284,84241.0,84240.0,0.42785759]
[1742672947870,0.5920084,84241.0,84240.0,0.45915759]
[1742672948072,0.59312841,84241.0,84240.0,0.49075759]
[1742672948574,0.74263615,84241.0,84240.0,0.49075759]
[1742672948873,0.75132348,84241.0,84240.0,0.49075759]
[1742672949374,0.75132348,84241.0,84240.0,0.45975759]
[1742672949864,0.75232348,84241.0,84240.0,0.45975759]
[1742672950171,0.75332348,84241.0,84240.0,0.45975759]
[1742672950572,0.78392348,84241.0,84240.0,0.0325]
[1742672950872,0.78392348,84241.0,84240.0,0.0319]
[1742672952472,0.1187298,84240.0,84238.0,8e-05]
[1742672952774,0.1187523,84224.0,84223.0,0.00047493]
[1742672952978,0.23243231,84224.0,84223.0,0.11922793]
[1742672953275,0.35116401,84224.0,84223.0,0.12034793]
[1742672954072,0.41326401,84224.0,84223.0,0.12034793]
[1742672954873,0.41326401,84224.0,84223.0,0.12334793]
[1742672955576,0.41326401,84224.0,84223.0,0.15734793]
[1742672957976,0.4253514,84224.0,84223.0,0.15734793]
[1742672965374,0.4253514,84224.0,84223.0,0.15534793]
[1742672965574,0.4253514,84224.0,84223.0,0.15734793]
[1742672966886,0.2506914,84224.0,84223.0,0.15434793]
[1742672967087,0.3635714,84224.0,84223.0,0.15734793]
[1742672967583,0.3950714,84224.0,84223.0,0.15734793]
[1742672967768,0.4275714,84224.0,84223.0,0.15734793]
[1742672971077,0.4275714,84224.0,84223.0,0.00659493]
[1742672971882,0.4275714,84224.0,84223.0,0.03799493]
[1742672972089,0.3146914,84224.0,84223.0,0.03699493]
[1742672972386,0.3146914,84224.0,84223.0,0.15574863]
[1742672972387,0.4275314,84224.0,84223.0,0.15574863]
[1742672972589,0.4275314,84224.0,84223.0,0.21914863]
[1742672972786,0.4275314,84224.0,84223.0,0.22014863]
[1742672972988,0.4275314,84224.0,84223.0,0.21914863]
[1742672973187,0.4275314,84224.0,84223.0,0.10039493]
[1742672973880,0.4275314,84224.0,84223.0,0.09939493]
[1742672974283,0.4275314,84224.0,84223.0,0.06629493]
[1742672975596,0.3146914,84224.0,84223.0,0.06629493]
[1742672975796,0.4275314,84224.0,84223.0,0.06629493]
[1742672977398,0.3146914,84224.0,84223.0,0.06629493]
[1742672977699,0.4274914,84224.0,84223.0,0.06629493]
[1742672979599,0.4274914,84224.0,84223.0,0.18504863]
[1742672979795,0.4274914,84224.0,84223.0,0.06629493]
[1742672980001,0.4274914,84224.0,84223.0,0.18504863]
[1742672980801,0.3146914,84224.0,84223.0,0.18504863]
[1742672981002,0.4280914,84224.0,84223.0,0.18504863]
[1742672981204,0.3146914,84224.0,84223.0,0.18504863]
[1742672981415,0.4280914,84224.0,84223.0,0.18504863]
[1742672985418,0.4607914,84224.0,84223.0,0.18504863]
[1742672988316,0.4606714,84224.0,84223.0,0.18504863]
[1742672989616,0.4606714,84224.0,84223.0,0.15374863]
[1742672990205,0.4606714,84224.0,84223.0,0.00359493]
[1742672990408,0.4606714,84224.0,84223.0,0.00247493]
[1742672990614,0.4606714,84224.0,84223.0,0.00367493]
[1742672990808,0.4606714,84224.0,84223.0,0.00247493]
[1742672991011,0.4606714,84224.0,84223.0,0.00307493]
[1742672992006,0.4606714,84224.0,84223.0,0.00107493]
[1742672992202,0.4606714,84224.0,84223.0,0.00307493]
[1742672992704,0.4606714,84224.0,84223.0,0.00207493]
[1742672993316,0.4606714,84224.0,84223.0,0.00147493]
[1742672993519,0.4606714,84224.0,84223.0,0.00211493]
[1742672993717,0.4606714,84224.0,84223.0,0.00147493]
[1742672995313,0.4606714,84224.0,84223.0,0.00247493]
[1742672995913,0.4606714,84224.0,84223.0,0.00147493]
[1742672998707,0.4606714,84224.0,84223.0,0.00211493]
[1742672998913,0.4606714,84224.0,84223.0,0.00147493]
[1742673000125,0.8214714,84224.0,84223.0,0.00259493]
[1742673000419,0.8214714,84224.0,84223.0,0.00147493]
[1742673000823,0.8214714,84224.0,84223.0,0.03277493]
[1742673001021,0.8214714,84224.0,84223.0,0.03341493]
[1742673003524,0.8214714,84224.0,84223.0,0.03277493]
[1742673003824,0.8214714,84224.0,84223.0,0.03389493]
[1742673005219,0.8214714,84224.0,84223.0,0.03277493]
[1742673006215,0.8214714,84224.0,84223.0,0.03389493]
[1742673007917,0.8214714,84224.0,84223.0,0.03277493]
[1742673008118,0.8214714,84224.0,84223.0,0.03337493]
[1742673013229,0.8214714,84224.0,84223.0,0.06357493]
[1742673014315,0.8214714,84224.0,84223.0,0.06297493]
[1742673014720,0.8214714,84224.0,84223.0,0.06361493]
[1742673016321,0.84724437,84224.0,84223.0,0.06361493]
[1742673016629,0.8741036,84224.0,84223.0,0.06297493]
[1742673017032,0.84833063,84224.0,84223.0,0.06297493]
[1742673017230,0.8214714,84224.0,84223.0,0.06297493]
[1742673017835,0.84833063,84224.0,84223.0,0.06297493]
[1742673018234,0.48753063,84224.0,84223.0,0.06297493]
[1742673018427,0.8214714,84224.0,84223.0,0.06357493]
[1742673019427,0.8214714,84224.0,84223.0,0.06297493]
[1742673019619,0.8214714,84224.0,84223.0,0.06361493]
[1742673021532,0.8214714,84224.0,84223.0,0.06297493]
[1742673022024,0.8214714,84224.0,84223.0,0.06417493]
[1742673022725,0.8214714,84224.0,84223.0,0.06297493]
[1742673023327,0.84724498,84224.0,84223.0,0.06297493]
[1742673023527,0.87410421,84224.0,84223.0,0.06297493]
[1742673023726,0.84833063,84224.0,84223.0,0.06297493]
[1742673023928,0.8214714,84224.0,84223.0,0.06297493]
[1742673028430,0.4606714,84224.0,84223.0,0.06297493]
[1742673028629,0.8214714,84224.0,84223.0,0.06361493]
[1742673028829,0.8214714,84224.0,84223.0,0.06297493]
[1742673029731,0.7887714,84224.0,84223.0,0.06297493]
[1742673030029,0.7887714,84224.0,84223.0,0.06357493]
[1742673030536,0.7887714,84224.0,84223.0,0.18232863]
[1742673030731,0.4279714,84224.0,84223.0,0.18172863]
[1742673030931,0.4279714,84224.0,84223.0,0.06357493]
[1742673035341,0.4279714,84224.0,84223.0,0.18232863]
[1742673038439,0.4279714,84224.0,84223.0,0.06357493]
[1742673039047,0.4608714,84224.0,84223.0,0.06357493]
[1742673039232,0.4608714,84224.0,84223.0,0.06297493]
[1742673040035,0.4608714,84224.0,84223.0,0.06357493]
[1742673040943,0.4608714,84224.0,84223.0,0.06297493]
[1742673041545,0.4608714,84224.0,84223.0,0.06357493]
[1742673042043,0.4608714,84224.0,84223.0,0.06297493]
[1742673042245,0.4608714,84224.0,84223.0,0.06365493]
[1742673043836,0.4608714,84224.0,84223.0,0.00215493]
[1742673044040,0.4608714,84224.0,84223.0,0.00147493]
[1742673045541,0.4608714,84224.0,84223.0,0.00207493]
[1742673046437,0.4606314,84224.0,84223.0,0.00207493]
[1742673047441,0.4606314,84224.0,84223.0,0.00147493]
[1742673047748,0.4606314,84224.0,84223.0,0.00207493]
[1742673048750,0.4606314,84224.0,84223.0,0.00147493]
[1742673048951,0.4606314,84224.0,84223.0,0.00207493]
[1742673049155,0.4606314,84224.0,84223.0,0.00147493]
[1742673050243,0.4606314,84224.0,84223.0,0.00207493]
[1742673050545,0.4606314,84224.0,84223.0,0.00147493]
[1742673051946,0.8214314,84224.0,84223.0,0.00147493]
[1742673052150,0.8214314,84224.0,84223.0,0.00207493]
[1742673052346,0.8214314,84224.0,84223.0,0.00147493]
[1742673053153,0.8214314,84224.0,84223.0,0.00207493]
[1742673053854,0.8214314,84224.0,84223.0,0.00147493]
[1742673056150,0.8214314,84224.0,84223.0,0.00211493]
[1742673056945,0.8214314,84224.0,84223.0,0.00147493]
[1742673057451,0.4606314,84224.0,84223.0,0.00147493]
[1742673057654,0.8214314,84224.0,84223.0,0.00211493]
[1742673057851,0.8214314,84224.0,84223.0,0.00147493]
[1742673059950,0.8214314,84224.0,84223.0,0.00207493]
[1742673060154,0.8214314,84224.0,84223.0,0.00147493]
[1742673060756,0.8214314,84224.0,84223.0,0.00207493]
[1742673060955,0.8214314,84224.0,84223.0,0.00147493]
[1742673061660,0.8214314,84224.0,84223.0,0.00207493]
[1742673062249,0.8214314,84224.0,84223.0,0.00147493]
[1742673062857,0.8214314,84224.0,84223.0,0.00207493]
[1742673063860,0.8214314,84224.0,84223.0,0.00147493]
[1742673065149,0.8214314,84224.0,84223.0,0.00211493]
[1742673065350,0.8214314,84224.0,84223.0,0.00147493]
[1742673065655,0.8214314,84224.0,84223.0,0.00207493]
[1742673066162,0.8214314,84224.0,84223.0,0.03277493]
[1742673066851,0.8214314,84224.0,84223.0,0.03217493]
[1742673067752,0.4606314,84224.0,84223.0,0.03217493]
[1742673067951,0.8214314,84224.0,84223.0,0.03217493]
[1742673068154,0.4606314,84224.0,84223.0,0.03217493]
[1742673068461,0.8214314,84224.0,84223.0,0.03217493]
[1742673068858,0.8479469,84224.0,84223.0,0.03217493]
[1742673069057,0.8214314,84224.0,84223.0,0.03217493]
[1742673069458,0.8214314,84224.0,84223.0,0.03277493]
[1742673071056,0.8214314,84224.0,84223.0,0.03217493]
[1742673072058,0.8214314,84224.0,84223.0,0.03277493]
[1742673072265,0.8214314,84224.0,84223.0,0.00147493]
[1742673073465,0.8214314,84224.0,84223.0,0.00211493]
[1742673073666,0.84735392,84224.0,84223.0,0.00211493]
[1742673073864,0.87386942,84224.0,84223.0,0.00211493]
[1742673074668,0.87386942,84224.0,84223.0,0.03321493]
[1742673075169,0.8479469,84224.0,84223.0,0.03321493]
[1742673075356,0.8214314,84224.0,84223.0,0.03321493]
[1742673075866,0.8479469,84224.0,84223.0,0.03321493]
[1742673076360,0.8479469,84224.0,84223.0,0.03257493]
[1742673076567,0.8214314,84224.0,84223.0,0.03317493]
[1742673079568,0.8214314,84224.0,84223.0,0.06537493]
[1742673079767,0.8214314,84224.0,84223.0,0.06597493]
[1742673079972,0.8214314,84224.0,84223.0,0.06537493]
[1742673080660,0.8214314,84224.0,84223.0,0.06597493]
[1742673081261,0.8214314,84224.0,84223.0,0.06537493]
[1742673081463,0.8214314,84224.0,84223.0,0.06605493]
[1742673081669,0.8214314,84224.0,84223.0,0.06537493]
[1742673084975,0.8214314,84224.0,84223.0,0.03427493]
[1742673090069,0.84734505,84224.0,84223.0,0.03427493]
[1742673090270,0.87386055,84224.0,84223.0,0.03427493]
[1742673092077,0.87386055,84224.0,84223.0,0.03487493]
[1742673092381,0.51306055,84224.0,84223.0,0.03487493]
[1742673092582,0.84734505,84224.0,84223.0,0.03487493]
[1742673092782,0.84734505,84224.0,84223.0,0.03427493]
[1742673092982,0.8479469,84224.0,84223.0,0.03487493]
[1742673093370,0.4871469,84224.0,84223.0,0.03487493]
[1742673093577,0.84734505,84224.0,84223.0,0.03487493]
[1742673093775,0.84734505,84224.0,84223.0,0.03427493]
[1742673093776,0.8214314,84224.0,84223.0,0.03427493]
[1742673093977,0.8479469,84224.0,84223.0,0.03427493]
[1742673094178,0.87386055,84224.0,84223.0,0.03427493]
[1742673094680,0.8479469,84224.0,84223.0,0.03427493]
[1742673094871,0.8214314,84224.0,84223.0,0.03487493]
[1742673095078,0.8214314,84224.0,84223.0,0.03427493]
[1742673095783,0.8214314,84224.0,84223.0,0.03487493]
[1742673097082,0.8214314,84224.0,84223.0,0.03427493]
[1742673098288,0.4606314,84224.0,84223.0,0.03427493]
[1742673098487,0.8214314,84224.0,84223.0,0.03495493]
[1742673098689,0.8214314,84224.0,84223.0,0.03427493]
[1742673101385,0.4606314,84224.0,84223.0,0.03427493]
[1742673101585,0.8214314,84224.0,84223.0,0.03487493]
[1742673101787,0.8214314,84224.0,84223.0,0.03427493]
[1742673102390,0.8214314,84224.0,84223.0,0.03495493]
[1742673106490,0.4606314,84224.0,84223.0,0.03495493]
[1742673106791,0.8214314,84224.0,84223.0,0.03495493]
[1742673108885,0.8214314,84224.0,84223.0,0.03427493]
[1742673109588,0.8214314,84224.0,84223.0,0.03539493]
[1742673111590,0.8214314,84224.0,84223.0,0.03439493]
[1742673111798,0.84692434,84224.0,84223.0,0.03539493]
[1742673111993,0.87343984,84224.0,84223.0,0.03427493]
[1742673112186,0.87343984,84224.0,84223.0,0.03527493]
[1742673112589,0.51263984,84224.0,84223.0,0.03427493]
[1742673112896,0.84692434,84224.0,84223.0,0.03587493]
[1742673113393,0.8479469,84224.0,84223.0,0.03527493]
[1742673113595,0.8214314,84224.0,84223.0,0.03587493]
[1742673113795,0.8214314,84224.0,84223.0,0.03487493]
[1742673114593,0.8214314,84224.0,84223.0,0.03587493]
[1742673115188,0.8214314,84224.0,84223.0,0.03527493]
[1742673115592,0.8214314,84224.0,84223.0,0.03639493]
[1742673115784,0.8214314,84224.0,84223.0,0.03539493]
[1742673116091,0.8214314,84224.0,84223.0,0.03639493]
[1742673117593,0.4606314,84224.0,84223.0,0.03639493]
[1742673117794,0.8214314,84224.0,84223.0,0.03639493]
[1742673120397,0.4606314,84224.0,84223.0,0.03639493]
[1742673120697,0.8214314,84224.0,84223.0,0.03639493]
[1742673121788,0.4606314,84224.0,84223.0,0.03639493]
[1742673121989,0.8214314,84224.0,84223.0,0.03639493]
[1742673123599,0.84694116,84224.0,84223.0,0.03639493]
[1742673123793,0.87321245,84224.0,84223.0,0.03527493]
[1742673125590,0.84770269,84224.0,84223.0,0.03587493]
[1742673125789,0.8214314,84224.0,84223.0,0.03527493]
[1742673125987,0.8209114,84224.0,84223.0,0.03527493]
[1742673126490,0.84718269,84224.0,84223.0,0.03527493]
[1742673126690,0.84718269,84224.0,84223.0,0.03427493]
[1742673126894,0.6692591,84224.0,84223.0,0.03527493]
[1742673127090,0.1634391,84224.0,84223.0,0.15462863]
[1742673127402,0.1634391,84224.0,84223.0,0.18722863]
[1742673127403,0.1319391,84224.0,84223.0,0.18722863]
[1742673127995,0.2506914,84224.0,84223.0,0.18722863]
[1742673128901,0.2506914,84224.0,84223.0,0.18622863]
[1742673129097,0.3138914,84224.0,84223.0,0.18722863]
[1742673129802,0.1951391,84224.0,84223.0,0.18722863]
[1742673130491,0.3138914,84224.0,84223.0,0.18722863]
[1742673134511,0.3138914,84224.0,84223.0,0.06847493]
[1742673134994,0.3138914,84224.0,84223.0,0.18722863]
[1742673135506,0.3138914,84224.0,84223.0,0.06847493]
[1742673136412,0.3138914,84224.0,84223.0,0.06747493]
[1742673136597,0.3138914,84224.0,84223.0,0.06847493]
[1742673137596,0.3138914,84224.0,84223.0,0.06747493]
[1742673137908,0.3138914,84224.0,84223.0,0.18622863]
[1742673138497,0.3138914,84224.0,84223.0,0.06747493]
[1742673139603,0.3138914,84224.0,84223.0,0.06847493]
[1742673140006,0.3138914,84224.0,84223.0,0.18622863]
[1742673140303,0.3138914,84224.0,84223.0,0.06747493]
[1742673143309,0.3138914,84224.0,84223.0,0.18622863]
[1742673143703,0.3138914,84224.0,84223.0,0.06747493]
[1742673160619,0.3138914,84224.0,84223.0,0.18622863]
[1742673160825,0.3138914,84224.0,84223.0,0.06747493]
[1742673161221,0.3138914,84224.0,84223.0,0.06687493]
[1742673161408,0.3138914,84224.0,84223.0,0.06755493]
[1742673161813,0.3138914,84224.0,84223.0,0.06687493]
[1742673162417,0.3138914,84224.0,84223.0,0.06747493]
[1742673191332,0.3138914,84224.0,84223.0,0.42827493]
[1742673194735,0.1951391,84224.0,84223.0,0.54702863]
[1742673195036,0.1951391,84224.0,84223.0,0.42827493]
[1742673195234,0.3138914,84224.0,84223.0,0.42827493]
[1742673202838,0.3138914,84224.0,84223.0,0.06747493]
[1742673203138,0.3138914,84224.0,84223.0,0.42827493]
[1742673203339,0.1951391,84224.0,84223.0,0.54702863]
[1742673204336,0.3138914,84224.0,84223.0,0.42827493]
[1742673205244,0.1951391,84224.0,84223.0,0.42827493]
[1742673206138,0.3138914,84224.0,84223.0,0.42827493]
[1742673210440,0.3138914,84224.0,84223.0,0.06747493]
[1742673211643,0.3138914,84224.0,84223.0,0.03487493]
[1742673211851,0.3138914,84224.0,84223.0,0.00207493]
[1742673212148,0.4264514,84224.0,84223.0,0.00207493]
[1742673212340,0.4264514,84224.0,84223.0,0.00147493]
[1742673212941,0.4264514,84224.0,84223.0,0.00047493]
[1742673213142,0.4264514,84224.0,84223.0,0.00147493]
[1742673216546,0.7872514,84224.0,84223.0,0.00147493]
[1742673217250,0.7872514,84224.0,84223.0,0.00047493]
[1742673217445,0.7872514,84224.0,84223.0,0.00147493]
[1742673218952,0.7872514,84224.0,84223.0,0.00047493]
[1742673219151,0.7872514,84224.0,84223.0,0.00147493]
[1742673219346,0.4264514,84224.0,84223.0,0.00147493]
[1742673219546,0.7872514,84224.0,84223.0,0.00147493]
[1742673219749,0.7872514,84224.0,84223.0,0.00047493]
[1742673219948,0.7872514,84224.0,84223.0,0.00147493]
[1742673221959,0.7872514,84224.0,84223.0,0.00047493]
[1742673222160,0.7872514,84224.0,84223.0,0.00147493]
[1742673224057,0.4264514,84224.0,84223.0,0.00147493]
[1742673224357,0.7872514,84224.0,84223.0,0.00147493]
[1742673224760,0.4264514,84224.0,84223.0,0.00147493]
[1742673225060,0.7872514,84224.0,84223.0,0.00147493]
[1742673225655,0.7872514,84224.0,84223.0,0.00047493]
[1742673225850,0.7872514,84224.0,84223.0,0.00147493]
[1742673232049,0.7872514,84224.0,84223.0,0.00047493]
[1742673232261,0.7872514,84224.0,84223.0,0.00147493]
[1742673232960,0.7872514,84224.0,84223.0,0.00047493]
[1742673233160,0.7872514,84224.0,84223.0,0.00147493]
[1742673235850,0.4264514,84224.0,84223.0,0.00047493]
[1742673236050,0.7872514,84224.0,84223.0,0.00147493]
[1742673236550,0.7872514,84224.0,84223.0,0.03477493]
[1742673239052,0.7872514,84224.0,84223.0,0.03377493]
[1742673239253,0.7872514,84224.0,84223.0,0.03477493]
[1742673239863,0.7872514,84224.0,84223.0,0.03377493]
[1742673240065,0.7872514,84224.0,84223.0,0.03477493]
[1742673245468,0.7872514,84224.0,84223.0,0.03377493]
[1742673245767,0.7872514,84224.0,84223.0,0.06585493]
[1742673245957,0.7872514,84224.0,84223.0,0.06517493]
[1742673246469,0.7872514,84224.0,84223.0,0.06577493]
[1742673247170,0.7872514,84224.0,84223.0,0.06517493]
[1742673248855,0.7872514,84224.0,84223.0,0.06417493]
[1742673249067,0.7872514,84224.0,84223.0,0.06517493]
[1742673249869,0.7872514,84224.0,84223.0,0.06577493]
[1742673250675,0.4264514,84224.0,84223.0,0.06577493]
[1742673250871,0.7872514,84224.0,84223.0,0.06577493]
[1742673251973,0.7872514,84224.0,84223.0,0.06517493]
[1742673252174,0.7872514,84224.0,84223.0,0.06577493]
[1742673255666,0.4264514,84224.0,84223.0,0.06577493]
[1742673255873,0.7872514,84224.0,84223.0,0.06577493]
[1742673256970,0.81150835,84224.0,84223.0,0.06577493]
[1742673257282,0.7872514,84224.0,84223.0,0.06577493]
[1742673258477,0.4264514,84224.0,84223.0,0.06577493]
[1742673258678,0.7872514,84224.0,84223.0,0.06577493]
[1742673259373,0.81087738,84224.0,84223.0,0.06517493]
[1742673259574,0.83513433,84224.0,84223.0,0.06517493]
[1742673260083,0.81150835,84224.0,84223.0,0.06517493]
[1742673260283,0.7872514,84224.0,84223.0,0.06517493]
[1742673260973,0.81150835,84224.0,84223.0,0.06517493]
[1742673261681,0.81150835,84224.0,84223.0,0.06577493]
[1742673261869,0.7872514,84224.0,84223.0,0.06577493]
[1742673262774,0.81150835,84224.0,84223.0,0.06577493]
[1742673262970,0.7872514,84224.0,84223.0,0.06577493]
[1742673264584,0.4264514,84224.0,84223.0,0.06577493]
[1742673265088,0.7872514,84224.0,84223.0,0.06577493]
[1742673268785,0.4264514,84224.0,84223.0,0.06577493]
[1742673268984,0.7872514,84224.0,84223.0,0.06577493]
[1742673271278,0.81150835,84224.0,84223.0,0.06577493]
[1742673271883,0.7872514,84224.0,84223.0,0.06577493]
[1742673272090,0.7872514,84224.0,84223.0,0.06517493]
[1742673272394,0.7872514,84224.0,84223.0,0.06585493]
[1742673273798,0.4264514,84224.0,84223.0,0.06585493]
[1742673274096,0.7872514,84224.0,84223.0,0.06585493]
[1742673277299,0.4264514,84224.0,84223.0,0.06585493]
[1742673277788,0.7872514,84224.0,84223.0,0.06585493]
[1742673278798,0.7872514,84224.0,84223.0,0.06417493]
[1742673278999,0.7872514,84224.0,84223.0,0.06581493]
[1742673286789,0.81004529,84224.0,84223.0,0.06581493]
[1742673287193,0.4264514,84224.0,84223.0,0.06581493]
[1742673287401,0.7872514,84224.0,84223.0,0.06581493]
[1742673288702,0.44924529,84224.0,84223.0,0.06581493]
[1742673288904,0.7872514,84224.0,84223.0,0.06581493]
[1742673289290,0.4264514,84224.0,84223.0,0.06581493]
[1742673289501,0.7872514,84224.0,84223.0,0.06581493]
[1742673290809,0.81004529,84224.0,84223.0,0.06581493]
[1742673291307,0.7872514,84224.0,84223.0,0.06581493]
[1742673291797,0.4264514,84224.0,84223.0,0.06581493]
[1742673292000,0.7872514,84224.0,84223.0,0.06581493]
[1742673292194,0.4264514,84224.0,84223.0,0.06581493]
[1742673292402,0.7872514,84224.0,84223.0,0.06581493]
[1742673293398,0.81004529,84224.0,84223.0,0.06581493]
[1742673293604,0.7872514,84224.0,84223.0,0.06581493]
[1742673295098,0.4264514,84224.0,84223.0,0.06581493]
[1742673295302,0.7872514,84224.0,84223.0,0.06581493]
[1742673296607,0.4264514,84224.0,84223.0,0.06581493]
[1742673296809,0.7872514,84224.0,84223.0,0.06581493]
[1742673298300,0.4264514,84224.0,84223.0,0.06581493]
[1742673298504,0.7872514,84224.0,84223.0,0.06581493]
[1742673300405,0.7872514,84224.0,84223.0,0.06517493]
[1742673301612,0.7872514,84224.0,84223.0,0.06585493]
[1742673302119,0.7872514,84224.0,84223.0,0.06517493]
[1742673303610,0.7872514,84224.0,84223.0,0.06585493]
[1742673303819,0.81017863,84224.0,84223.0,0.06585493]
[1742673304312,0.7872514,84224.0,84223.0,0.06585493]
[1742673304510,0.4264514,84224.0,84223.0,0.06585493]
[1742673304817,0.7872514,84224.0,84223.0,0.06585493]
[1742673305120,0.7872514,84224.0,84223.0,0.06517493]
[1742673306120,0.81017863,84224.0,84223.0,0.06517493]
[1742673306518,0.7872514,84224.0,84223.0,0.06517493]
[1742673309415,0.7872514,84224.0,84223.0,0.06581493]
[1742673309622,0.7872514,84224.0,84223.0,0.06517493]
[1742673309926,0.7872514,84224.0,84223.0,0.06581493]
[1742673313526,0.7872514,84224.0,84223.0,0.06517493]
[1742673313727,0.7872514,84224.0,84223.0,0.06585493]
[1742673314523,0.7872514,84224.0,84223.0,0.06517493]
[1742673315317,0.7872514,84224.0,84223.0,0.06577493]
[1742673315829,0.7872514,84224.0,84223.0,0.06517493]
[1742673316327,0.7872514,84224.0,84223.0,0.06629493]
[1742673317025,0.4264514,84224.0,84223.0,0.06517493]
[1742673317217,0.7872514,84224.0,84223.0,0.06577493]
[1742673317526,0.7872514,84224.0,84223.0,0.06517493]
[1742673318720,0.7872514,84224.0,84223.0,0.06577493]
[1742673318931,0.4264514,84224.0,84223.0,0.06577493]
[1742673319120,0.7872514,84224.0,84223.0,0.06577493]
[1742673321526,0.4264514,84224.0,84223.0,0.06577493]
[1742673321720,0.7872514,84224.0,84223.0,0.06577493]
[1742673323422,0.83379523,84224.0,84223.0,0.06577493]
[1742673327535,0.83379523,84224.0,84223.0,0.06517493]
[1742673328433,0.83379523,84224.0,84223.0,0.06629493]
[1742673328935,0.83379523,84224.0,84223.0,0.06517493]
[1742673330933,0.81017863,84224.0,84223.0,0.06517493]
[1742673331133,0.7872514,84224.0,84223.0,0.06517493]
[1742673331927,0.7872514,84224.0,84223.0,0.06629493]
[1742673332132,0.7872514,84224.0,84223.0,0.06517493]
[1742673333731,0.7872514,84224.0,84223.0,0.06577493]
[1742673333931,0.7872514,84224.0,84223.0,0.06517493]
[1742673334139,0.7872514,84224.0,84223.0,0.06577493]
[1742673334448,0.7872514,84224.0,84223.0,0.06517493]